[Event "NJSK 2024 A"]
[Site "Groningen, Netherlands"]
[Date "2024.04.29"]
[Round "3.6"]
[White "Van Hesselingen, Guido"]
[Black "Klugstedt, Vincent"]
[Result "1/2-1/2"]
[TimeControl "90min/40moves + 30min + 30sec/move"]
[WhiteElo "2016"]
[BlackElo "1913"]

1. e4 {[%clk 01:30:54]} {[%emt 00:00:05]} c5 {[%clk 01:30:52]} {[%emt
00:00:09]} 2. Nf3 {[%clk 01:31:18]} {[%emt 00:00:06]} g6 {[%clk 01:30:39]}
{[%emt 00:00:43]} 3. d4 {[%clk 01:31:40]} {[%emt 00:00:08]} cxd4 {[%clk
01:31:03]} {[%emt 00:00:07]} 4. Nxd4 {[%clk 01:32:06]} {[%emt 00:00:03]} Bg7
{[%clk 01:31:21]} {[%emt 00:00:12]} 5. Nc3 {[%clk 01:32:26]} {[%emt 00:00:10]}
Nc6 {[%clk 01:31:14]} {[%emt 00:00:37]} 6. Be3 {[%clk 01:32:47]} {[%emt
00:00:09]} Nf6 {[%clk 01:31:07]} {[%emt 00:00:37]} 7. Bc4 {[%clk 01:32:57]}
{[%emt 00:00:19]} O-O {[%clk 01:30:48]} {[%emt 00:00:49]} 8. Bb3 {[%clk
01:33:15]} {[%emt 00:00:12]} d6 {[%clk 01:26:48]} {[%emt 00:04:30]} 9. f3
{[%clk 01:32:58]} {[%emt 00:00:47]} Bd7 {[%clk 01:26:11]} {[%emt 00:01:07]} 10.
h4 {[%clk 01:33:16]} {[%emt 00:00:12]} h5 {[%clk 01:21:18]} {[%emt 00:05:23]}
11. Qd2 {[%clk 01:33:21]} {[%emt 00:00:24]} Na5 {[%clk 01:14:41]} {[%emt
00:07:08]} 12. O-O-O {[%clk 01:32:40]} {[%emt 00:01:12]} Rc8 {[%clk 01:10:48]}
{[%emt 00:04:23]} 13. Kb1 {[%clk 01:32:14]} {[%emt 00:00:55]} Nc4 {[%clk
01:05:25]} {[%emt 00:05:53]} 14. Bxc4 {[%clk 01:31:56]} {[%emt 00:00:48]} Rxc4
{[%clk 01:05:49]} {[%emt 00:00:06]} 15. g4 {[%clk 01:31:53]} {[%emt 00:00:33]}
Qc8 {[%clk 00:51:35]} {[%emt 00:14:45]} 16. Rdg1 {[%clk 01:11:48]} {[%emt
00:20:33]} hxg4 {[%clk 00:46:26]} {[%emt 00:05:40]} 17. h5 {[%clk 01:11:46]}
{[%emt 00:00:32]} gxh5 {[%clk 00:36:13]} {[%emt 00:10:43]} 18. Nd5 {[%clk
00:47:32]} {[%emt 00:24:44]} Nxd5 {[%clk 00:33:30]} {[%emt 00:03:13]} 19. exd5
{[%clk 00:46:05]} {[%emt 00:01:57]} f5 {[%clk 00:32:30]} {[%emt 00:01:31]} 20.
Rxh5 {[%clk 00:25:50]} {[%emt 00:20:44]} f4 {[%clk 00:31:37]} {[%emt 00:01:23]}
21. Bf2 {[%clk 00:25:39]} {[%emt 00:00:40]} g3 {[%clk 00:31:15]} {[%emt
00:00:53]} 22. Qd3 {[%clk 00:26:02]} {[%emt 00:00:07]} Rf6 {[%clk 00:17:06]}
{[%emt 00:14:39]} 23. Bxg3 {[%clk 00:19:33]} {[%emt 00:06:59]} Rxd4 {[%clk
00:10:33]} {[%emt 00:07:03]} 24. Qxd4 {[%clk 00:15:11]} {[%emt 00:04:51]} fxg3
{[%clk 00:10:51]} {[%emt 00:00:12]} 25. Rxg3 {[%clk 00:14:06]} {[%emt
00:01:35]} Bf5 {[%clk 00:10:49]} {[%emt 00:00:33]} 26. Qd2 {[%clk 00:12:12]}
{[%emt 00:02:23]} Kf7 {[%clk 00:08:32]} {[%emt 00:02:48]} 27. Qg2 {[%clk
00:11:01]} {[%emt 00:01:41]} Bf8 {[%clk 00:04:20]} {[%emt 00:04:42]} 28. Rgg5
{[%clk 00:08:41]} {[%emt 00:02:49]} Bg6 {[%clk 00:03:46]} {[%emt 00:01:05]} 29.
Rh8 {[%clk 00:08:08]} {[%emt 00:01:02]} Qc5 {[%clk 00:03:13]} {[%emt 00:01:04]}
30. Rxf8+ {[%clk 00:03:50]} {[%emt 00:04:47]} Kxf8 {[%clk 00:03:43]} {[%emt
00:00:01]} 31. Rxg6 {[%clk 00:04:13]} {[%emt 00:00:07]} Rxg6 {[%clk 00:03:16]}
{[%emt 00:00:57]} 32. Qxg6 {[%clk 00:04:38]} {[%emt 00:00:04]} Qxd5 {[%clk
00:03:36]} {[%emt 00:00:11]} 33. Qh6+ {[%clk 00:03:42]} {[%emt 00:01:25]} Ke8
{[%clk 00:03:01]} {[%emt 00:01:06]} 34. Qh8+ {[%clk 00:04:01]} {[%emt
00:00:10]} Kf7 {[%clk 00:03:09]} {[%emt 00:00:22]} 35. Qh7+ {[%clk 00:03:47]}
{[%emt 00:00:44]} Ke8 {[%clk 00:02:38]} {[%emt 00:01:01]} 36. Qh8+ {[%clk
00:04:07]} {[%emt 00:00:11]} Kd7 {[%clk 00:02:34]} {[%emt 00:00:33]} 37. Qh3+
{[%clk 00:04:31]} {[%emt 00:00:06]} Kc7 {[%clk 00:02:49]} {[%emt 00:00:16]} 38.
b3 {[%clk 00:04:40]} {[%emt 00:00:20]} Qd1+ {[%clk 00:02:38]} {[%emt 00:00:42]}
39. Kb2 {[%clk 00:05:05]} {[%emt 00:00:04]} Qd4+ {[%clk 00:02:56]} {[%emt
00:00:12]} 40. Kb1 {[%clk 00:05:05]} {[%emt 00:00:30]} e5 {[%clk 00:02:33]}
{[%emt 00:00:54]} 41. Qf5 {[%clk 00:16:18]} {[%emt 00:19:16]} a6 {[%clk
00:28:18]} {[%emt 00:04:45]} 42. Qf7+ {[%clk 00:08:30]} {[%emt 00:08:17]} Kb6
{[%clk 00:27:15]} {[%emt 00:01:33]} 43. Qf6 {[%clk 00:07:58]} {[%emt 00:01:02]}
Kc5 {[%clk 00:27:12]} {[%emt 00:00:34]} 44. a3 {[%clk 00:07:36]} {[%emt
00:00:52]} Qc3 {[%clk 00:25:12]} {[%emt 00:02:30]} 45. Qf8 {[%clk 00:07:20]}
{[%emt 00:00:46]} Qd4 {[%clk 00:24:28]} {[%emt 00:01:13]} 46. Qf7 {[%clk
00:06:29]} {[%emt 00:01:22]} Kb6 {[%clk 00:23:59]} {[%emt 00:00:59]} 47. Qf6
{[%clk 00:06:50]} {[%emt 00:00:08]} Ka7 {[%clk 00:24:22]} {[%emt 00:00:08]} 48.
c4 {[%clk 00:06:23]} {[%emt 00:00:57]} Qc3 {[%clk 00:20:22]} {[%emt 00:04:30]}
49. Qxd6 {[%clk 00:06:25]} {[%emt 00:00:29]} Qxb3+ {[%clk 00:20:41]} {[%emt
00:00:10]} 50. Ka1 {[%clk 00:06:49]} {[%emt 00:00:06]} Qxc4 {[%clk 00:18:48]}
{[%emt 00:02:22]} 51. Qxe5 {[%clk 00:06:57]} {[%emt 00:00:22]} Qf1+ {[%clk
00:19:06]} {[%emt 00:00:12]} 52. Ka2 {[%clk 00:06:49]} {[%emt 00:00:37]} Qxf3
{[%clk 00:19:26]} {[%emt 00:00:10]} 53. Qd4+ {[%clk 00:07:13]} {[%emt
00:00:07]} b6 {[%clk 00:19:40]} {[%emt 00:00:15]} 54. Qd7+ {[%clk 00:07:32]}
{[%emt 00:00:12]} Qb7 {[%clk 00:20:02]} {[%emt 00:00:08]} 55. Qd6 {[%clk
00:07:38]} {[%emt 00:00:24]} Qf7+ {[%clk 00:18:53]} {[%emt 00:01:38]} 56. Ka1
{[%clk 00:08:00]} {[%emt 00:00:09]} b5 {[%clk 00:17:48]} {[%emt 00:01:35]} 57.
Qc5+ {[%clk 00:06:46]} {[%emt 00:01:44]} Kb7 {[%clk 00:18:03]} {[%emt
00:00:15]} 58. Qd4 {[%clk 00:06:57]} {[%emt 00:00:19]} Qc4 {[%clk 00:16:44]}
{[%emt 00:01:48]} 59. Qd7+ {[%clk 00:07:14]} {[%emt 00:00:13]} Qc7 {[%clk
00:16:22]} {[%emt 00:00:53]} 60. Qd5+ {[%clk 00:07:12]} {[%emt 00:00:32]} Kb6
{[%clk 00:16:15]} {[%emt 00:00:37]} 61. Qd4+ {[%clk 00:07:33]} {[%emt
00:00:08]} Qc5 {[%clk 00:16:00]} {[%emt 00:00:46]} 62. Qd8+ {[%clk 00:07:54]}
{[%emt 00:00:08]} Qc7 {[%clk 00:15:19]} {[%emt 00:01:11]} 1/2-1/2

[Event "NJSK 2024 A"]
[Site "Groningen, Netherlands"]
[Date "2024.04.29"]
[Round "3.7"]
[White "Wiersma, Camiel"]
[Black "Ramak, Vince"]
[Result "1-0"]
[TimeControl "90min/40moves + 30min + 30sec/move"]
[WhiteElo "1963"]
[BlackElo "1902"]

1. c4 {[%clk 01:30:57]} {[%emt 00:00:02]} f5 {[%clk 01:29:41]} {[%emt
00:01:19]} 2. d4 {[%clk 01:31:22]} {[%emt 00:00:05]} e6 {[%clk 01:30:02]}
{[%emt 00:00:10]} 3. g3 {[%clk 01:31:47]} {[%emt 00:00:04]} Nf6 {[%clk
01:30:28]} {[%emt 00:00:05]} 4. Bg2 {[%clk 01:32:13]} {[%emt 00:00:04]} Be7
{[%clk 01:30:50]} {[%emt 00:00:08]} 5. Nh3 {[%clk 01:32:38]} {[%emt 00:00:04]}
O-O {[%clk 01:31:13]} {[%emt 00:00:07]} 6. O-O {[%clk 01:33:04]} {[%emt
00:00:04]} d6 {[%clk 01:31:18]} {[%emt 00:00:26]} 7. b3 {[%clk 01:33:30]}
{[%emt 00:00:04]} Qe8 {[%clk 01:24:30]} {[%emt 00:07:18]} 8. Bb2 {[%clk
01:33:23]} {[%emt 00:00:36]} c5 {[%clk 01:23:42]} {[%emt 00:01:18]} 9. dxc5
{[%clk 01:32:48]} {[%emt 00:01:06]} dxc5 {[%clk 01:24:05]} {[%emt 00:00:08]} 10.
Nc3 {[%clk 01:32:16]} {[%emt 00:01:01]} a6 {[%clk 01:18:49]} {[%emt 00:05:46]}
11. Nf4 {[%clk 01:21:58]} {[%emt 00:10:47]} Ra7 {[%clk 01:13:41]} {[%emt
00:05:39]} 12. e4 {[%clk 01:18:07]} {[%emt 00:04:21]} fxe4 {[%clk 01:09:25]}
{[%emt 00:04:45]} 13. Nxe4 {[%clk 01:17:45]} {[%emt 00:00:52]} Nxe4 {[%clk
01:09:24]} {[%emt 00:00:31]} 14. Bxe4 {[%clk 01:17:55]} {[%emt 00:00:20]} Bf6
{[%clk 01:07:36]} {[%emt 00:02:18]} 15. Bxf6 {[%clk 00:54:40]} {[%emt
00:23:46]} Rxf6 {[%clk 01:07:59]} {[%emt 00:00:07]} 16. Qd3 {[%clk 00:53:19]}
{[%emt 00:01:51]} Rh6 {[%clk 01:06:19]} {[%emt 00:02:09]} 17. Rfe1 {[%clk
00:49:24]} {[%emt 00:04:25]} b5 {[%clk 00:53:26]} {[%emt 00:13:24]} 18. Qd6
{[%clk 00:46:20]} {[%emt 00:03:34]} Nd7 {[%clk 00:46:46]} {[%emt 00:07:10]} 19.
Bd5 {[%clk 00:38:25]} {[%emt 00:08:24]} Nf8 {[%clk 00:44:16]} {[%emt 00:03:00]}
20. Qxc5 {[%clk 00:32:53]} {[%emt 00:06:03]} Re7 {[%clk 00:43:50]} {[%emt
00:00:56]} 21. cxb5 {[%clk 00:24:59]} {[%emt 00:08:24]} g5 {[%clk 00:43:35]}
{[%emt 00:00:45]} 22. Bc6 {[%clk 00:23:13]} {[%emt 00:02:16]} Bd7 {[%clk
00:42:17]} {[%emt 00:01:48]} 23. Qxg5+ {[%clk 00:23:28]} {[%emt 00:00:14]} Rg6
{[%clk 00:42:08]} {[%emt 00:00:41]} 24. Nxg6 {[%clk 00:23:33]} {[%emt
00:00:24]} Nxg6 {[%clk 00:42:34]} {[%emt 00:00:04]} 25. Bxd7 {[%clk 00:23:30]}
{[%emt 00:00:33]} Rxd7 {[%clk 00:42:58]} {[%emt 00:00:06]} 26. bxa6 {[%clk
00:23:26]} {[%emt 00:00:34]} 1-0

[Event "NJSK 2024 A"]
[Site "Groningen, Netherlands"]
[Date "2024.04.30"]
[Round "4.2"]
[White "Smid, Jelle"]
[Black "Labruyere, Roger"]
[Result "1-0"]
[TimeControl "90min/40moves + 30min + 30sec/move"]
[WhiteElo "1917"]
[BlackElo "2267"]

1. e4 {[%clk 01:30:58]} {[%emt 00:00:02]} c5 {[%clk 01:30:56]} {[%emt
00:00:05]} 2. Nf3 {[%clk 01:31:23]} {[%emt 00:00:05]} d6 {[%clk 01:31:24]}
{[%emt 00:00:02]} 3. d4 {[%clk 01:31:47]} {[%emt 00:00:06]} cxd4 {[%clk
01:31:51]} {[%emt 00:00:03]} 4. Nxd4 {[%clk 01:32:12]} {[%emt 00:00:05]} Nf6
{[%clk 01:32:17]} {[%emt 00:00:04]} 5. Nc3 {[%clk 01:32:34]} {[%emt 00:00:07]}
a6 {[%clk 01:32:44]} {[%emt 00:00:03]} 6. h3 {[%clk 01:33:00]} {[%emt
00:00:04]} e5 {[%clk 01:33:07]} {[%emt 00:00:07]} 7. Nde2 {[%clk 01:33:27]}
{[%emt 00:00:03]} h5 {[%clk 01:33:19]} {[%emt 00:00:18]} 8. g3 {[%clk
01:33:54]} {[%emt 00:00:05]} Be7 {[%clk 01:32:36]} {[%emt 00:01:12]} 9. Bg2
{[%clk 01:34:17]} {[%emt 00:00:06]} b5 {[%clk 01:31:44]} {[%emt 00:01:22]} 10.
O-O {[%clk 01:34:33]} {[%emt 00:00:14]} Bb7 {[%clk 01:32:07]} {[%emt 00:00:08]}
11. a4 {[%clk 01:31:26]} {[%emt 00:03:37]} b4 {[%clk 01:31:37]} {[%emt
00:01:00]} 12. Nd5 {[%clk 01:31:52]} {[%emt 00:00:04]} Bxd5 {[%clk 01:32:02]}
{[%emt 00:00:06]} 13. exd5 {[%clk 01:32:14]} {[%emt 00:00:07]} Nbd7 {[%clk
01:30:24]} {[%emt 00:02:07]} 14. Bd2 {[%clk 01:25:48]} {[%emt 00:06:56]} Rb8
{[%clk 01:28:38]} {[%emt 00:02:17]} 15. a5 {[%clk 01:25:25]} {[%emt 00:00:52]}
Nc5 {[%clk 01:26:03]} {[%emt 00:03:04]} 16. Nc1 {[%clk 01:22:46]} {[%emt
00:03:09]} Rb5 {[%clk 01:16:35]} {[%emt 00:09:58]} 17. Na2 {[%clk 01:16:42]}
{[%emt 00:06:35]} Qb8 {[%clk 01:08:06]} {[%emt 00:08:59]} 18. Qe1 {[%clk
01:14:10]} {[%emt 00:03:02]} b3 {[%clk 01:05:55]} {[%emt 00:02:40]} 19. c4
{[%clk 01:14:10]} {[%emt 00:00:31]} Rb7 {[%clk 01:06:08]} {[%emt 00:00:16]} 20.
Nb4 {[%clk 01:00:19]} {[%emt 00:14:22]} Rxb4 {[%clk 01:06:06]} {[%emt
00:00:32]} 21. Bxb4 {[%clk 01:00:44]} {[%emt 00:00:04]} Nd3 {[%clk 01:06:31]}
{[%emt 00:00:05]} 22. Qc3 {[%clk 01:01:09]} {[%emt 00:00:06]} Nxb4 {[%clk
01:06:57]} {[%emt 00:00:03]} 23. Qxb3 {[%clk 01:01:32]} {[%emt 00:00:08]} Nc6
{[%clk 01:07:17]} {[%emt 00:00:10]} 24. Qa4 {[%clk 01:01:18]} {[%emt 00:00:44]}
O-O {[%clk 00:59:39]} {[%emt 00:08:08]} 25. dxc6 {[%clk 00:59:49]} {[%emt
00:01:58]} h4 {[%clk 00:57:03]} {[%emt 00:03:06]} 26. g4 {[%clk 00:58:03]}
{[%emt 00:02:17]} Qc8 {[%clk 00:50:54]} {[%emt 00:06:40]} 27. Qb3 {[%clk
00:56:27]} {[%emt 00:02:06]} e4 {[%clk 00:46:40]} {[%emt 00:04:42]} 28. Qb7
{[%clk 00:54:08]} {[%emt 00:02:50]} Qe6 {[%clk 00:34:06]} {[%emt 00:13:04]} 29.
Rfe1 {[%clk 00:53:33]} {[%emt 00:01:05]} g5 {[%clk 00:18:16]} {[%emt 00:16:20]}
30. c7 {[%clk 00:52:17]} {[%emt 00:01:46]} Qc8 {[%clk 00:14:11]} {[%emt
00:04:35]} 31. Bxe4 {[%clk 00:51:43]} {[%emt 00:01:04]} Nxe4 {[%clk 00:14:06]}
{[%emt 00:00:35]} 32. Qxe4 {[%clk 00:52:05]} {[%emt 00:00:07]} Bf6 {[%clk
00:14:31]} {[%emt 00:00:06]} 33. Qc6 {[%clk 00:48:38]} {[%emt 00:03:57]} Kg7
{[%clk 00:11:21]} {[%emt 00:03:39]} 34. Rad1 {[%clk 00:46:44]} {[%emt
00:02:24]} Be5 {[%clk 00:09:28]} {[%emt 00:02:23]} 35. Rxe5 {[%clk 00:46:54]}
{[%emt 00:00:20]} dxe5 {[%clk 00:09:50]} {[%emt 00:00:08]} 36. Rd7 {[%clk
00:47:02]} {[%emt 00:00:22]} e4 {[%clk 00:06:17]} {[%emt 00:04:03]} 37. Qd6
{[%clk 00:46:32]} {[%emt 00:01:00]} e3 {[%clk 00:05:18]} {[%emt 00:01:28]} 38.
fxe3 {[%clk 00:46:25]} {[%emt 00:00:38]} Qe8 {[%clk 00:03:40]} {[%emt
00:02:09]} 39. Kf2 {[%clk 00:45:13]} {[%emt 00:01:41]} Kh7 {[%clk 00:02:12]}
{[%emt 00:01:59]} 40. Qd5 {[%clk 00:41:16]} {[%emt 00:04:27]} Qc8 {[%clk
00:00:36]} {[%emt 00:02:06]} 41. Rxf7+ {[%clk 00:40:06]} {[%emt 00:01:40]}
Rxf7+ {[%clk 00:29:57]} {[%emt 00:01:08]} 42. Qxf7+ {[%clk 01:10:30]} {[%emt
00:00:06]} Kh6 {[%clk 00:30:15]} {[%emt 00:00:13]} 43. Qf6+ {[%clk 01:10:49]}
{[%emt 00:00:11]} Kh7 {[%clk 00:30:16]} {[%emt 00:00:28]} 44. Qf5+ {[%clk
01:11:14]} {[%emt 00:00:05]} 1-0

[Event "NJSK 2024 A"]
[Site "Groningen, Netherlands"]
[Date "2024.04.30"]
[Round "4.3"]
[White "Leorato, Imanol"]
[Black "Snijders, Take"]
[Result "0-1"]
[TimeControl "90min/40moves + 30min + 30sec/move"]
[WhiteElo "1837"]
[BlackElo "2090"]

1. e4 {[%clk 01:30:33]} {[%emt 00:00:27]} c6 {[%clk 01:30:56]} {[%emt
00:00:05]} 2. Nf3 {[%clk 01:30:52]} {[%emt 00:00:10]} d5 {[%clk 01:31:22]}
{[%emt 00:00:05]} 3. Nc3 {[%clk 01:30:58]} {[%emt 00:00:23]} dxe4 {[%clk
01:31:43]} {[%emt 00:00:09]} 4. Nxe4 {[%clk 01:31:16]} {[%emt 00:00:12]} Nf6
{[%clk 01:32:06]} {[%emt 00:00:07]} 5. Qe2 {[%clk 01:31:25]} {[%emt 00:00:22]}
Nxe4 {[%clk 01:32:24]} {[%emt 00:00:12]} 6. Qxe4 {[%clk 01:31:45]} {[%emt
00:00:09]} Nd7 {[%clk 01:32:34]} {[%emt 00:00:20]} 7. Bc4 {[%clk 01:31:50]}
{[%emt 00:00:24]} Nf6 {[%clk 01:32:45]} {[%emt 00:00:19]} 8. Ne5 {[%clk
01:32:12]} {[%emt 00:00:09]} e6 {[%clk 01:33:00]} {[%emt 00:00:14]} 9. Qe2
{[%clk 01:32:33]} {[%emt 00:00:09]} b5 {[%clk 01:32:48]} {[%emt 00:00:42]} 10.
Bd3 {[%clk 01:31:35]} {[%emt 00:01:27]} Qc7 {[%clk 01:32:00]} {[%emt 00:01:19]}
11. Nxc6 {[%clk 01:29:55]} {[%emt 00:02:10]} Bd6 {[%clk 01:13:31]} {[%emt
00:18:59]} 12. Nd4 {[%clk 01:28:59]} {[%emt 00:01:27]} a6 {[%clk 01:12:22]}
{[%emt 00:01:38]} 13. Nf5 {[%clk 01:17:44]} {[%emt 00:11:45]} Bb7 {[%clk
01:10:46]} {[%emt 00:02:07]} 14. Nxd6+ {[%clk 01:13:12]} {[%emt 00:05:01]} Qxd6
{[%clk 01:10:57]} {[%emt 00:00:18]} 15. O-O {[%clk 01:13:08]} {[%emt 00:00:33]}
h5 {[%clk 01:10:11]} {[%emt 00:01:18]} 16. f3 {[%clk 01:08:16]} {[%emt
00:05:22]} Ng4 {[%clk 01:04:16]} {[%emt 00:06:25]} 17. fxg4 {[%clk 00:51:30]}
{[%emt 00:17:16]} hxg4 {[%clk 01:04:12]} {[%emt 00:00:33]} 18. Qxg4 {[%clk
00:50:10]} {[%emt 00:01:50]} Qxh2+ {[%clk 01:00:39]} {[%emt 00:04:03]} 19. Kf2
{[%clk 00:50:15]} {[%emt 00:00:25]} Rh4 {[%clk 00:53:41]} {[%emt 00:07:28]} 20.
Qe2 {[%clk 00:47:03]} {[%emt 00:03:43]} Bxg2 {[%clk 00:47:17]} {[%emt
00:06:53]} 21. Ke1 {[%clk 00:46:46]} {[%emt 00:00:47]} Bxf1 {[%clk 00:41:24]}
{[%emt 00:06:23]} 22. Qxh2 {[%clk 00:46:58]} {[%emt 00:00:19]} Rxh2 {[%clk
00:41:35]} {[%emt 00:00:18]} 23. Bxf1 {[%clk 00:47:06]} {[%emt 00:00:20]} Rd8
{[%clk 00:32:48]} {[%emt 00:09:20]} 24. Bd3 {[%clk 00:35:15]} {[%emt 00:12:20]}
Rd5 {[%clk 00:27:22]} {[%emt 00:05:57]} 25. b3 {[%clk 00:32:20]} {[%emt
00:03:25]} Re5+ {[%clk 00:27:21]} {[%emt 00:00:31]} 26. Kf1 {[%clk 00:32:38]}
{[%emt 00:00:12]} Rh1+ {[%clk 00:27:24]} {[%emt 00:00:50]} 0-1

[Event "NJSK 2024 A"]
[Site "Groningen, Netherlands"]
[Date "2024.04.30"]
[Round "4.4"]
[White "Moskalets, Sofiia"]
[Black "Blom, Rens"]
[Result "1/2-1/2"]
[TimeControl "90min/40moves + 30min + 30sec/move"]
[WhiteElo "2050"]
[BlackElo "1963"]

1. e4 {[%clk 01:30:58]} {[%emt 00:00:03]} d6 {[%clk 01:30:57]} {[%emt
00:00:04]} 2. d4 {[%clk 01:31:23]} {[%emt 00:00:05]} Nf6 {[%clk 01:31:23]}
{[%emt 00:00:04]} 3. Nc3 {[%clk 01:31:48]} {[%emt 00:00:05]} g6 {[%clk
01:31:48]} {[%emt 00:00:05]} 4. Be3 {[%clk 01:32:09]} {[%emt 00:00:08]} Bg7
{[%clk 01:32:13]} {[%emt 00:00:05]} 5. Qd2 {[%clk 01:32:30]} {[%emt 00:00:09]}
O-O {[%clk 01:32:37]} {[%emt 00:00:07]} 6. f3 {[%clk 01:32:55]} {[%emt
00:00:04]} e5 {[%clk 01:33:00]} {[%emt 00:00:08]} 7. O-O-O {[%clk 01:33:00]}
{[%emt 00:00:25]} exd4 {[%clk 01:33:21]} {[%emt 00:00:08]} 8. Bxd4 {[%clk
01:33:27]} {[%emt 00:00:04]} a6 {[%clk 01:33:36]} {[%emt 00:00:16]} 9. g4
{[%clk 01:32:54]} {[%emt 00:01:02]} Nc6 {[%clk 01:32:42]} {[%emt 00:01:24]} 10.
Be3 {[%clk 01:33:12]} {[%emt 00:00:12]} b5 {[%clk 01:32:25]} {[%emt 00:00:48]}
11. Bh6 {[%clk 01:29:44]} {[%emt 00:03:57]} Be6 {[%clk 01:25:57]} {[%emt
00:06:59]} 12. Kb1 {[%clk 01:24:20]} {[%emt 00:05:53]} b4 {[%clk 01:18:43]}
{[%emt 00:07:45]} 13. Nce2 {[%clk 01:24:18]} {[%emt 00:00:30]} a5 {[%clk
01:06:03]} {[%emt 00:13:11]} 14. Bxg7 {[%clk 01:08:54]} {[%emt 00:15:55]} Kxg7
{[%clk 01:06:28]} {[%emt 00:00:05]} 15. Nd4 {[%clk 01:04:44]} {[%emt 00:04:39]}
Nxd4 {[%clk 00:57:21]} {[%emt 00:09:37]} 16. Qxd4 {[%clk 01:05:07]} {[%emt
00:00:06]} Kg8 {[%clk 00:56:55]} {[%emt 00:00:57]} 17. h4 {[%clk 00:53:39]}
{[%emt 00:11:58]} Nd7 {[%clk 00:45:37]} {[%emt 00:11:48]} 18. g5 {[%clk
00:49:12]} {[%emt 00:04:57]} Ne5 {[%clk 00:40:48]} {[%emt 00:05:20]} 19. f4
{[%clk 00:41:44]} {[%emt 00:07:56]} Nc6 {[%clk 00:40:41]} {[%emt 00:00:38]} 20.
Qe3 {[%clk 00:36:54]} {[%emt 00:05:20]} b3 {[%clk 00:33:58]} {[%emt 00:07:13]}
21. cxb3 {[%clk 00:33:56]} {[%emt 00:03:28]} a4 {[%clk 00:34:11]} {[%emt
00:00:17]} 22. Bc4 {[%clk 00:29:47]} {[%emt 00:04:39]} Qc8 {[%clk 00:28:11]}
{[%emt 00:06:31]} 23. Ne2 {[%clk 00:21:50]} {[%emt 00:08:26]} axb3 {[%clk
00:27:14]} {[%emt 00:01:28]} 24. Bxb3 {[%clk 00:22:08]} {[%emt 00:00:11]} Re8
{[%clk 00:19:23]} {[%emt 00:08:20]} 25. Bxe6 {[%clk 00:18:31]} {[%emt
00:04:07]} Qxe6 {[%clk 00:19:43]} {[%emt 00:00:10]} 26. Nc3 {[%clk 00:18:56]}
{[%emt 00:00:05]} Nb4 {[%clk 00:18:36]} {[%emt 00:01:37]} 27. Qh3 {[%clk
00:03:18]} {[%emt 00:16:09]} Nxa2 {[%clk 00:12:54]} {[%emt 00:06:11]} 28. Nd5
{[%clk 00:03:08]} {[%emt 00:00:40]} Qxe4+ {[%clk 00:12:47]} {[%emt 00:00:38]}
29. Qd3 {[%clk 00:03:34]} {[%emt 00:00:04]} Qa4 {[%clk 00:05:44]} {[%emt
00:07:33]} 30. Qd4 {[%clk 00:02:57]} {[%emt 00:01:06]} Qxd4 {[%clk 00:03:41]}
{[%emt 00:02:33]} 31. Rxd4 {[%clk 00:03:23]} {[%emt 00:00:05]} Re2 {[%clk
00:03:42]} {[%emt 00:00:28]} 32. Rhd1 {[%clk 00:01:37]} {[%emt 00:02:16]} Rh2
{[%clk 00:02:15]} {[%emt 00:01:58]} 33. Nf6+ {[%clk 00:01:12]} {[%emt
00:00:55]} Kg7 {[%clk 00:02:36]} {[%emt 00:00:08]} 34. Re1 {[%clk 00:01:08]}
{[%emt 00:00:34]} Rxh4 {[%clk 00:02:16]} {[%emt 00:00:50]} 35. Re8 {[%clk
00:01:02]} {[%emt 00:00:36]} Rh1+ {[%clk 00:01:30]} {[%emt 00:01:16]} 36. Kc2
{[%clk 00:01:28]} {[%emt 00:00:04]} Rh2+ {[%clk 00:01:19]} {[%emt 00:00:42]} 37.
Rd2 {[%clk 00:00:52]} {[%emt 00:01:06]} Rxd2+ {[%clk 00:01:35]} {[%emt
00:00:14]} 38. Kxd2 {[%clk 00:01:18]} {[%emt 00:00:03]} Rxe8 {[%clk 00:01:59]}
{[%emt 00:00:06]} 39. Nxe8+ {[%clk 00:01:45]} {[%emt 00:00:03]} Kf8 {[%clk
00:02:10]} {[%emt 00:00:19]} 40. Nxc7 {[%clk 00:02:02]} {[%emt 00:00:13]} Nb4
{[%clk 00:02:00]} {[%emt 00:00:41]} 41. Kc3 {[%clk 00:02:02]} {[%emt 00:00:30]}
Nc6 {[%clk 00:01:35]} {[%emt 00:00:54]} 42. Nd5 {[%clk 00:01:37]} {[%emt
00:00:56]} Ke8 {[%clk 00:22:41]} {[%emt 00:09:24]} 43. b4 {[%clk 00:24:26]}
{[%emt 00:07:41]} Kd7 {[%clk 00:21:33]} {[%emt 00:01:37]} 44. b5 {[%clk
00:20:08]} {[%emt 00:04:49]} Nd8 {[%clk 00:21:31]} {[%emt 00:00:31]} 45. Kb4
{[%clk 00:13:39]} {[%emt 00:06:59]} Nb7 {[%clk 00:20:01]} {[%emt 00:02:00]} 46.
Kc4 {[%clk 00:09:19]} {[%emt 00:04:51]} Ke6 {[%clk 00:17:33]} {[%emt 00:02:57]}
47. Ne3 {[%clk 00:08:33]} {[%emt 00:01:16]} f6 {[%clk 00:11:19]} {[%emt
00:06:44]} 48. Kd4 {[%clk 00:06:52]} {[%emt 00:02:10]} 1/2-1/2